fUSD/lending_fUSD_20240322
["ID","MTS","AMOUNT","RATE_DAILY","PERIOD"]
[320077346,1711139446858,-629.04,0.00021917,2]
[320077347,1711139446867,-500.0,0.00021917,2]
[320077348,1711139446877,-1527.01,0.00021917,2]
[320077349,1711139446887,-500.0,0.00021917,2]
[320077350,1711139446896,-500.0,0.00021917,2]
[320077351,1711139446905,-500.0,0.00021917,2]
[320077352,1711139446914,-500.0,0.00021917,2]
[320077353,1711139446923,-502.50425588,0.00021917,2]
[320077354,1711139446932,-500.0,0.00021917,2]
[320077355,1711139446941,-500.0,0.00021917,2]
[320077356,1711139446950,-500.0,0.00021917,2]
[320077357,1711139446959,-500.0,0.00021917,2]
[320077358,1711139446968,-844.65,0.00021917,2]
[320077359,1711139446977,-447.99737876,0.00021917,2]
[320077360,1711139446987,-500.0,0.00021917,2]
[320077361,1711139446996,-500.0,0.00021917,2]
[320077362,1711139447005,-500.0,0.00021917,2]
[320077363,1711139447016,-981.95,0.00021917,2]
[320077364,1711139447025,-500.0,0.00021917,2]
[320077365,1711139447035,-1895.08,0.00021917,2]
[320077366,1711139447045,-2368.09,0.00021917,2]
[320077367,1711139447054,-501.2326526,0.00021917,2]
[320077368,1711139447063,-1718.65,0.00021917,2]
[320077369,1711139447073,-500.0,0.00021917,2]
[320077370,1711139447082,-502.27601345,0.00021917,2]
[320077371,1711139447092,-1645.55,0.00021917,2]
[320077372,1711139447102,-500.0,0.00021917,2]
[320077373,1711139447111,-500.0,0.00021917,2]
[320077374,1711139447120,-500.0,0.00021917,2]
[320077375,1711139447130,-500.0,0.00021917,2]
[320077376,1711139447139,-500.0,0.00021917,2]
[320077377,1711139447148,-283.69862513,0.00021917,2]
[320077378,1711139447157,-1142.35,0.00021917,2]
[320077379,1711139447166,-698.25,0.00021917,2]
[320077380,1711139447176,-503.36443315,0.00021917,2]
[320077381,1711139447185,-500.0,0.00021917,2]
[320077382,1711139447194,-700.79,0.00021917,2]
[320077383,1711139447204,-500.0,0.00021917,2]
[320077384,1711139447214,-500.0,0.00021917,2]
[320077385,1711139447223,-500.0,0.00021917,2]
[320077386,1711139447233,-1668.78,0.00021917,2]
[320077387,1711139447243,-538.17,0.00021917,2]
[320077388,1711139447252,-2867.24,0.00021917,2]
[320077389,1711139447261,-500.0,0.00021917,2]
[320077390,1711139447270,-500.0,0.00021917,2]
[320077391,1711139447279,-1138.3,0.00021917,2]
[320077392,1711139447289,-500.0,0.00021917,2]
[320077393,1711139447298,-507.42349504,0.00021917,2]
[320077394,1711139447307,-500.0,0.00021917,2]
[320077395,1711139447316,-500.0,0.00021917,2]
[320077396,1711139447326,-500.0,0.00021917,2]
[320077397,1711139447335,-500.0,0.00021917,2]
[320077398,1711139447344,-1270.15,0.00021917,2]
[320077399,1711139447353,-500.0,0.00021917,2]
[320077400,1711139447363,-500.0,0.00021917,2]
[320077401,1711139447372,-888.79,0.00021917,2]
[320077402,1711139447381,-502.56455157,0.00021917,2]
[320077403,1711139447390,-2124.07,0.00021917,2]
[320077404,1711139447399,-502.97995791,0.00021917,2]
[320077405,1711139447408,-576.86,0.00021917,2]
[320077406,1711139447418,-500.0,0.00021917,2]
[320077407,1711139447426,-2046.7,0.00021917,2]
[320077408,1711139447436,-500.0,0.00021917,2]
[320077409,1711139447445,-500.0,0.00021917,2]
[320077410,1711139447454,-503.05974234,0.00021917,2]
[320077411,1711139447463,-500.0,0.00021917,2]
[320077412,1711139447472,-500.0,0.00021917,2]
[320077413,1711139447481,-1456.38,0.00021917,2]
[320077414,1711139447490,-500.0,0.00021917,2]
[320077415,1711139447499,-500.0,0.00021917,2]
[320077416,1711139447507,-500.0,0.00021917,2]
[320077417,1711139447517,-727.24,0.00021917,2]
[320077418,1711139447526,-500.0,0.00021917,2]
[320077419,1711139447535,-2173.88,0.00021917,2]
[320077420,1711139447544,-500.0,0.00021917,2]
[320077421,1711139447553,-1862.3,0.00021917,2]
[320077422,1711139447563,-1791.12,0.00021917,2]
[320077423,1711139447574,-500.0,0.00021917,2]
[320077424,1711139447585,-500.0,0.00021917,2]
[320077425,1711139447594,-1086.13,0.00021917,2]
[320077426,1711139447603,-500.0,0.00021917,2]
[320077427,1711139447613,-500.0,0.00021917,2]
[320077428,1711139447622,-500.0,0.00021917,2]
[320077429,1711139447632,-1189.91,0.00021917,2]
[320077430,1711139447641,-500.0,0.00021917,2]
[320077431,1711139447651,-650.12,0.00021917,2]
[320077432,1711139447659,-650.12,0.00021917,2]
[320077433,1711139447669,-650.12,0.00021917,2]
[320077434,1711139447678,-650.12,0.00021917,2]
[320077435,1711139447687,-650.12,0.00021917,2]
[320077436,1711139447697,-650.12,0.00021917,2]
[320077437,1711139447706,-650.12,0.00021917,2]
[320077438,1711139447715,-500.0,0.00021917,2]
[320077439,1711139447724,-650.12,0.00021917,2]
[320077440,1711139447733,-596.33,0.00021917,2]
[320077441,1711139447742,-500.0,0.00021917,2]
[320077442,1711139447751,-650.12,0.00021917,2]
[320077443,1711139447761,-650.12,0.00021917,2]
[320077444,1711139447770,-650.12,0.00021917,2]
[320077445,1711139447778,-650.12,0.00021917,2]
[320077446,1711139447787,-650.12,0.00021917,2]
[320077447,1711139447797,-650.12,0.00021917,2]
[320077448,1711139447806,-500.0,0.00021917,2]
[320077449,1711139447815,-650.12,0.00021917,2]
[320077450,1711139447825,-500.0,0.00021917,2]
[320077451,1711139447834,-500.0,0.00021917,2]
[320077452,1711139447843,-500.0,0.00021917,2]
[320077453,1711139447851,-650.12,0.00021917,2]
[320077454,1711139447860,-650.12,0.00021917,2]
[320077455,1711139447870,-650.12,0.00021917,2]
[320077456,1711139447878,-650.12,0.00021917,2]
[320077457,1711139447887,-500.0,0.00021917,2]
[320077458,1711139447896,-650.12,0.00021917,2]
[320077459,1711139447905,-1180.58,0.00021917,2]
[320077460,1711139447914,-650.12,0.00021917,2]
[320077461,1711139447923,-650.12,0.00021917,2]
[320077462,1711139447932,-650.12,0.00021917,2]
[320077463,1711139447942,-500.0,0.00021917,2]
[320077464,1711139447951,-650.26806953,0.00021917,2]
[320077465,1711139447960,-1108.7,0.00021917,2]
[320077466,1711139447969,-500.0,0.00021917,2]
[320077467,1711139447978,-500.0,0.00021917,2]
[320077468,1711139447988,-504.41550968,0.00021917,2]
[320077469,1711139447997,-500.0,0.00021917,2]
[320077470,1711139448007,-500.0,0.00021917,2]
[320077471,1711139448018,-500.0,0.00021917,2]
[320077472,1711139448027,-502.48304539,0.00021917,2]
[320077473,1711139448036,-215.68209926,0.00021917,2]
[320077474,1711139448045,-504.46412833,0.00021917,2]
[320077475,1711139448055,-500.0,0.00021917,2]
[320077476,1711139448065,-500.0,0.00021917,2]
[320077477,1711139448074,-500.0,0.00021917,2]
[320077478,1711139448084,-1319.68,0.00021917,2]
[320077479,1711139448093,-530.62,0.00021917,2]
[320077480,1711139448102,-500.0,0.00021917,2]
[320077481,1711139448112,-500.0,0.00021917,2]
[320077482,1711139448121,-543.21,0.00021917,2]
[320077483,1711139448130,-2055.39,0.00021917,2]
[320077484,1711139448139,-501.6191853,0.00021917,2]
[320077485,1711139448148,-500.0,0.00021917,2]
[320077486,1711139448158,-500.0,0.00021917,2]
[320077487,1711139448167,-500.0,0.00021917,2]
[320077488,1711139448177,-809.11,0.00021917,2]
[320077489,1711139448186,-500.0,0.00021917,2]
[320077490,1711139448195,-502.31357019,0.00021917,2]
[320077491,1711139448204,-1430.78,0.00021917,2]
[320077492,1711139448213,-500.0,0.00021917,2]
[320077493,1711139448222,-500.0,0.00021917,2]
[320077494,1711139448231,-500.0,0.00021917,2]
[320077495,1711139448241,-500.0,0.00021917,2]
[320077496,1711139448250,-500.0,0.00021917,2]
[320077497,1711139448259,-500.0,0.00021917,2]
[320077498,1711139448268,-1274.19,0.00021917,2]
[320077499,1711139448277,-500.0,0.00021917,2]
[320077500,1711139448286,-500.0,0.00021917,2]
[320077501,1711139448295,-500.0,0.00021917,2]
[320077502,1711139448305,-500.0,0.00021917,2]
[320077503,1711139448314,-238.69144648,0.00021917,2]
[320077504,1711139448323,-2133.2,0.00021917,2]
[320077505,1711139448332,-500.0,0.00021917,2]
[320077506,1711139448342,-341.53051115,0.00021917,2]
[320077507,1711139448350,-500.65,0.00021917,2]
[320077508,1711139448360,-500.0,0.00021917,2]
[320077509,1711139448369,-500.0,0.00021917,2]
[320077510,1711139448378,-502.97196574,0.00021917,2]
[320077511,1711139448387,-2839.58,0.00021917,2]
[320077512,1711139448397,-500.0,0.00021917,2]
[320077513,1711139448406,-1649.54,0.00021917,2]
[320077514,1711139448416,-500.0,0.00021917,2]
[320077515,1711139448425,-505.05369523,0.00021917,2]
[320077516,1711139448434,-1894.73,0.00021917,2]
[320077517,1711139448445,-500.0,0.00021917,2]
[320077518,1711139448454,-500.0,0.00021917,2]
[320077519,1711139448463,-500.0,0.00021917,2]
[320077520,1711139448473,-500.0,0.00021917,2]
[320077521,1711139448482,-197.869072,0.00021917,2]
[320077522,1711139448491,-502.05025564,0.00021917,2]
[320077523,1711139448501,-500.0,0.00021917,2]
[320077524,1711139448510,-500.0,0.00021917,2]
[320077525,1711139448520,-236.8830764,0.00021917,2]
[320077526,1711139448530,-500.0,0.00021917,2]
[320077527,1711139448539,-500.0,0.00021917,2]
[320077528,1711139448548,-500.0,0.00021917,2]
[320077529,1711139448557,-610.02,0.00021917,2]
[320077530,1711139448566,-500.0,0.00021917,2]
[320077531,1711139448577,-1512.42,0.00021917,2]
[320077532,1711139448586,-500.0,0.00021917,2]
[320077533,1711139448597,-500.0,0.00021917,2]
[320077534,1711139448607,-500.0,0.00021917,2]
[320077535,1711139448616,-1761.42,0.00021917,2]
[320077536,1711139448625,-1207.26,0.00021917,2]
[320077537,1711139448636,-500.0,0.00021917,2]
[320077538,1711139448645,-500.0,0.00021917,2]
[320077539,1711139448654,-502.61087581,0.00021917,2]
[320077540,1711139448664,-501.914906,0.00021917,2]
[320077541,1711139448673,-2444.99,0.00021917,2]
[320077542,1711139448682,-500.0,0.00021917,2]
[320077543,1711139448691,-1180.89,0.00021917,2]
[320077544,1711139448701,-1095.11,0.00021917,2]
[320077545,1711139448710,-500.0,0.00021917,2]
[320077546,1711139448719,-915.86,0.00021917,2]
[320077547,1711139448729,-500.0,0.00021917,2]
[320077548,1711139448738,-1736.25,0.00021917,2]
[320077549,1711139448747,-500.0,0.00021917,2]
[320077550,1711139448757,-568.29422009,0.00021917,2]
[320077551,1711139448766,-1140.36,0.00021917,2]
[320077552,1711139448776,-887.55,0.00021917,2]
[320077553,1711139448786,-828.15,0.00021917,2]
[320077554,1711139448796,-640.06,0.00021917,2]
[320077555,1711139448805,-646.24808047,0.00021917,2]
[320077556,1711139448814,-500.0,0.00021917,2]
[320077557,1711139448824,-500.0,0.00021917,2]
[320077558,1711139448833,-503.09643685,0.00021917,2]
[320077559,1711139448843,-503.08563245,0.00021917,2]
[320077560,1711139448852,-500.0,0.00021917,2]
[320077561,1711139448861,-2490.43,0.00021917,2]
[320077562,1711139448871,-2205.72,0.00021917,2]
[320077563,1711139448881,-500.0,0.00021917,2]
[320077564,1711139448890,-500.0,0.00021917,2]
[320077565,1711139448899,-502.92165205,0.00021917,2]
[320077566,1711139448908,-500.0,0.00021917,2]
[320077567,1711139448917,-1097.71,0.00021917,2]
[320077568,1711139448927,-500.0,0.00021917,2]
[320077569,1711139448937,-500.0,0.00021917,2]
[320077570,1711139448946,-709.86,0.00021917,2]
[320077571,1711139448956,-500.0,0.00021917,2]
[320077572,1711139448965,-500.0,0.00021917,2]
[320077573,1711139448974,-500.0,0.00021917,2]
[320077574,1711139448984,-500.0,0.00021917,2]
[320077575,1711139449192,-830.59,0.00021917,2]
[320077576,1711139449201,-500.0,0.00021917,2]
[320077577,1711139449211,-1982.21,0.00021917,2]
[320077578,1711139449220,-500.0,0.00021917,2]
[320077579,1711139449230,-500.0,0.00021917,2]
[320077580,1711139449240,-500.0,0.00021917,2]
[320077581,1711139449250,-500.0,0.00021917,2]
[320077582,1711139449260,-1130.16,0.00021917,2]
[320077583,1711139449269,-500.0,0.00021917,2]
[320077584,1711139449279,-500.0,0.00021917,2]
[320077585,1711139449288,-1554.38,0.00021917,2]
[320077586,1711139449297,-500.0,0.00021917,2]
[320077587,1711139449307,-743.47,0.00021917,2]
[320077588,1711139449317,-1035.85,0.00021917,2]
[320077589,1711139449329,-500.0,0.00021917,2]
[320077590,1711139449339,-842.49,0.00021917,2]
[320077591,1711139449348,-883.6,0.00021917,2]
[320077592,1711139449358,-500.0,0.00021917,2]
[320077593,1711139449368,-500.0,0.00021917,2]
[320077594,1711139449377,-1761.67,0.00021917,2]
[320077595,1711139449387,-500.0,0.00021917,2]
[320077596,1711139449397,-1708.65,0.00021917,2]
[320077597,1711139449406,-500.0,0.00021917,2]
[320077598,1711139449416,-599.99,0.00021917,2]
[320077599,1711139449425,-500.0,0.00021917,2]
[320077600,1711139449434,-543.1,0.00021917,2]
[320077601,1711139449444,-1122.02,0.00021917,2]
[320077602,1711139449453,-500.0,0.00021917,2]
[320077603,1711139449462,-521.24,0.00021917,2]
[320077604,1711139449471,-500.0,0.00021917,2]
[320077605,1711139449481,-983.52,0.00021917,2]
[320077606,1711139449490,-500.0,0.00021917,2]
[320077607,1711139449500,-443.10401457,0.00021917,2]
[320077608,1711139449510,-1720.77,0.00021917,2]
[320077609,1711139449519,-500.0,0.00021917,2]
[320077610,1711139449529,-1687.74,0.00021917,2]
[320077611,1711139449539,-511.42,0.00021917,2]
[320077612,1711139449548,-502.93468028,0.00021917,2]
[320077613,1711139449558,-888.08,0.00021917,2]
[320077614,1711139449568,-500.0,0.00021917,2]
[320077615,1711139449580,-726.21,0.00021917,2]
[320077616,1711139449589,-500.0,0.00021917,2]
[320077617,1711139449598,-715.91,0.00021917,2]
[320077618,1711139449608,-500.0,0.00021917,2]
[320077619,1711139449617,-500.0,0.00021917,2]
[320077620,1711139449627,-501.6368817,0.00021917,2]
[320077621,1711139449637,-3088.37,0.00021917,2]
[320077622,1711139449646,-500.0,0.00021917,2]
[320077623,1711139449656,-500.0,0.00021917,2]
[320077624,1711139449665,-2446.59,0.00021917,2]
[320077625,1711139449674,-500.0,0.00021917,2]
[320077626,1711139449684,-500.0,0.00021917,2]
[320077627,1711139449693,-503.01459896,0.00021917,2]
[320077628,1711139449703,-500.0,0.00021917,2]
[320077629,1711139449713,-500.0,0.00021917,2]
[320077630,1711139449722,-2062.43,0.00021917,2]
[320077631,1711139449732,-647.7,0.00021917,2]
[320077632,1711139449742,-1282.39,0.00021917,2]
[320077633,1711139449752,-500.0,0.00021917,2]
[320077634,1711139449761,-500.0,0.00021917,2]
[320077635,1711139449772,-500.0,0.00021917,2]
[320077636,1711139449789,-500.0,0.00021917,2]
[320077637,1711139449807,-500.0,0.00021917,2]
[320077638,1711139449817,-502.10355057,0.00021917,2]
[320077639,1711139449828,-500.0,0.00021917,2]
[320077640,1711139449838,-670.92,0.00021917,2]
[320077641,1711139449847,-500.0,0.00021917,2]
[320077642,1711139449857,-500.0,0.00021917,2]
[320077643,1711139449868,-501.45529029,0.00021917,2]
[320077644,1711139449878,-1534.88,0.00021917,2]
[320077645,1711139449888,-503.5863123,0.00021917,2]
[320077646,1711139449897,-1805.68,0.00021917,2]
[320077647,1711139449907,-2209.08,0.00021917,2]
[320077648,1711139449917,-500.0,0.00021917,2]
[320077649,1711139449926,-500.0,0.00021917,2]
[320077650,1711139449936,-500.0,0.00021917,2]
[320077651,1711139449946,-1549.2,0.00021917,2]
[320077652,1711139449956,-500.0,0.00021917,2]
[320077653,1711139449966,-500.0,0.00021917,2]
[320077654,1711139449976,-500.0,0.00021917,2]
[320077655,1711139449987,-500.0,0.00021917,2]
[320077656,1711139449998,-500.0,0.00021917,2]
[320077657,1711139450009,-283.59799671,0.00021917,2]
[320077658,1711139450020,-500.0,0.00021917,2]
[320077659,1711139450030,-500.0,0.00021917,2]
[320077660,1711139450041,-500.0,0.00021917,2]
[320077661,1711139450051,-2364.15,0.00021917,2]
[320077662,1711139450062,-1100.33,0.00021917,2]
[320077663,1711139450073,-1938.15,0.00021917,2]
[320077664,1711139450085,-500.0,0.00021917,2]
[320077665,1711139450096,-500.0,0.00021917,2]
[320077666,1711139450106,-500.0,0.00021917,2]
[320077667,1711139450116,-502.20058333,0.00021917,2]
[320077668,1711139450125,-500.0,0.00021917,2]
[320077669,1711139450135,-500.0,0.00021917,2]
[320077670,1711139450145,-500.0,0.00021917,2]
[320077671,1711139450155,-500.0,0.00021917,2]
[320077672,1711139450166,-707.91,0.00021917,2]
[320077673,1711139450175,-500.0,0.00021917,2]
[320077674,1711139450185,-500.0,0.00021917,2]
[320077675,1711139450194,-500.0,0.00021917,2]
[320077676,1711139450204,-500.0,0.00021917,2]
[320077677,1711139450214,-978.31,0.00021917,2]
[320077678,1711139450223,-747.58,0.00021917,2]
[320077679,1711139450238,-1215.28,0.00021917,2]
[320077680,1711139450248,-2205.09,0.00021917,2]
[320077681,1711139450258,-500.0,0.00021917,2]
[320077682,1711139450268,-1677.81,0.00021917,2]
[320077683,1711139450278,-1268.26,0.00021917,2]
[320077684,1711139450289,-500.0,0.00021917,2]
[320077685,1711139450299,-500.0,0.00021917,2]
[320077686,1711139450309,-500.0,0.00021917,2]
[320077687,1711139450319,-500.0,0.00021917,2]
[320077688,1711139450330,-575.07859794,0.00021917,2]
[320077689,1711139450340,-500.0,0.00021917,2]
[320077690,1711139450351,-6511.15,0.00021917,2]
[320077691,1711139450360,-624.28,0.00021917,2]
[320077692,1711139450370,-500.0,0.00021917,2]
[320077693,1711139450380,-500.0,0.00021917,2]
[320077694,1711139450391,-500.0,0.00021917,2]
[320077695,1711139450401,-500.0,0.00021917,2]
[320077696,1711139450412,-500.0,0.00021917,2]
[320077697,1711139450422,-500.0,0.00021917,2]
[320077698,1711139450432,-1600.9,0.00021917,2]
[320077699,1711139450443,-500.0,0.00021917,2]
[320077700,1711139450453,-1208.83,0.00021917,2]
[320077701,1711139450463,-500.0,0.00021917,2]
[320077702,1711139450474,-500.0,0.00021917,2]
[320077703,1711139450484,-505.11919567,0.00021917,2]
[320077704,1711139450495,-857.53,0.00021917,2]
[320077705,1711139450505,-500.0,0.00021917,2]
[320077706,1711139450515,-590.95,0.00021917,2]
[320077707,1711139450525,-870.46,0.00021917,2]
[320077708,1711139450535,-500.0,0.00021917,2]
[320077709,1711139450546,-500.0,0.00021917,2]
[320077710,1711139450556,-500.0,0.00021917,2]
[320077711,1711139450567,-510.27,0.00021917,2]
[320077712,1711139450578,-500.0,0.00021917,2]
[320077713,1711139450588,-641.79,0.00021917,2]
[320077714,1711139450599,-1523.31,0.00021917,2]
[320077715,1711139450609,-500.0,0.00021917,2]
[320077716,1711139450620,-500.0,0.00021917,2]
[320077717,1711139450630,-500.0,0.00021917,2]
[320077718,1711139450640,-1892.95,0.00021917,2]
[320077719,1711139450650,-500.0,0.00021917,2]
[320077720,1711139450660,-500.0,0.00021917,2]
[320077721,1711139450674,-500.0,0.00021917,2]
[320077722,1711139450684,-613.62,0.00021917,2]
[320077723,1711139450694,-500.0,0.00021917,2]
[320077724,1711139450705,-500.0,0.00021917,2]
[320077725,1711139450715,-500.0,0.00021917,2]
[320077726,1711139450726,-500.0,0.00021917,2]
[320077727,1711139450736,-500.0,0.00021917,2]
[320077728,1711139450747,-500.0,0.00021917,2]
[320077729,1711139450758,-500.0,0.00021917,2]
[320077730,1711139450769,-500.0,0.00021917,2]
[320077731,1711139450780,-500.0,0.00021917,2]
[320077732,1711139450791,-563.59,0.00021917,2]
[320077733,1711139450801,-502.86035659,0.00021917,2]
[320077734,1711139450812,-1301.1,0.00021917,2]
[320077735,1711139450824,-1397.93,0.00021917,2]
[320077736,1711139450834,-500.0,0.00021917,2]
[320077737,1711139450845,-1900.66,0.00021917,2]
[320077738,1711139450855,-1168.71,0.00021917,2]
[320077739,1711139450865,-500.0,0.00021917,2]
[320077740,1711139450875,-500.0,0.00021917,2]
[320077741,1711139450885,-503.75,0.00021917,2]
[320077742,1711139450895,-500.0,0.00021917,2]
[320077743,1711139450905,-500.0,0.00021917,2]
[320077744,1711139450916,-500.0,0.00021917,2]
[320077745,1711139450926,-500.0,0.00021917,2]
[320077746,1711139450936,-500.0,0.00021917,2]
[320077747,1711139450950,-500.0,0.00021917,2]
[320077748,1711139450960,-500.0,0.00021917,2]
[320077749,1711139450970,-500.0,0.00021917,2]
[320077750,1711139450980,-500.0,0.00021917,2]
[320077751,1711139450990,-513.0,0.00021917,2]
[320077752,1711139451001,-1481.16,0.00021917,2]
[320077753,1711139451014,-500.0,0.00021917,2]
[320077754,1711139451024,-1126.04,0.00021917,2]
[320077755,1711139451035,-500.0,0.00021917,2]
[320077756,1711139451044,-3036.46,0.00021917,2]
[320077757,1711139451055,-1148.09,0.00021917,2]
[320077758,1711139451065,-224.2082299,0.00021917,2]
[320077759,1711139451075,-503.18302124,0.00021917,2]
[320077760,1711139451085,-500.0,0.00021917,2]
[320077761,1711139451096,-500.0,0.00021917,2]
[320077762,1711139451107,-500.0,0.00021917,2]
[320077763,1711139451117,-780.98,0.00021917,2]
[320077764,1711139451128,-502.5213228,0.00021917,2]
[320077765,1711139451138,-500.0,0.00021917,2]
[320077766,1711139451148,-504.32469655,0.00021917,2]
[320077767,1711139451158,-500.0,0.00021917,2]
[320077768,1711139451168,-500.0,0.00021917,2]
[320077769,1711139451178,-500.0,0.00021917,2]
[320077770,1711139451189,-500.32017109,0.00021917,2]
[320077771,1711139451200,-500.0,0.00021917,2]
[320077772,1711139451210,-500.0,0.00021917,2]
[320077773,1711139451221,-500.0,0.00021917,2]
[320077774,1711139451231,-1302.59,0.00021917,2]
[320077775,1711139451240,-500.0,0.00021917,2]
[320077776,1711139451250,-500.0,0.00021917,2]
[320077777,1711139451261,-500.0,0.00021917,2]
[320077778,1711139451271,-502.81208603,0.00021917,2]
[320077779,1711139451281,-500.0,0.00021917,2]
[320077780,1711139451291,-1621.94,0.00021917,2]
[320077781,1711139451302,-2468.97,0.00021917,2]
[320077782,1711139451312,-500.0,0.00021917,2]
[320077783,1711139451323,-500.0,0.00021917,2]
[320077784,1711139451334,-500.0,0.00021917,2]
[320077785,1711139451344,-500.0,0.00021917,2]
[320077786,1711139451354,-1181.28,0.00021917,2]
[320077787,1711139451364,-625.96,0.00021917,2]
[320077788,1711139451374,-505.95665754,0.00021917,2]
[320077789,1711139451384,-2660.23,0.00021917,2]
[320077790,1711139451394,-568.33,0.00021917,2]
[320077791,1711139451404,-500.0,0.00021917,2]
[320077792,1711139451415,-1563.28,0.00021917,2]
[320077793,1711139451425,-501.07071662,0.00021917,2]
[320077794,1711139451435,-500.0,0.00021917,2]
[320077795,1711139451445,-501.42792702,0.00021917,2]
[320077796,1711139451457,-500.0,0.00021917,2]
[320077797,1711139451467,-500.0,0.00021917,2]
[320077798,1711139451477,-500.0,0.00021917,2]
[320077799,1711139451487,-500.0,0.00021917,2]
[320077800,1711139451497,-502.25446634,0.00021917,2]
[320077801,1711139451507,-1718.27,0.00021917,2]
[320077802,1711139451518,-500.0,0.00021917,2]
[320077803,1711139451527,-1527.81,0.00021917,2]
[320077804,1711139451538,-500.0,0.00021917,2]
[320077805,1711139451548,-893.84,0.00021917,2]
[320077806,1711139451558,-2066.53,0.00021917,2]
[320077807,1711139451568,-500.0,0.00021917,2]
[320077808,1711139451578,-500.0,0.00021917,2]
[320077809,1711139451589,-503.40237555,0.00021917,2]
[320077810,1711139451599,-500.0,0.00021917,2]
[320077811,1711139451609,-500.0,0.00021917,2]
[320077812,1711139451618,-788.52,0.00021917,2]
[320077813,1711139451628,-500.0,0.00021917,2]
[320077814,1711139451639,-541.82,0.00021917,2]
[320077815,1711139451648,-500.0,0.00021917,2]
[320077816,1711139451658,-500.0,0.00021917,2]
[320077817,1711139451668,-2408.15,0.00021917,2]
[320077818,1711139451678,-500.0,0.00021917,2]
[320077819,1711139451688,-500.0,0.00021917,2]
[320077820,1711139451698,-454.74741291,0.00021917,2]
[320077821,1711139451709,-893.85,0.00021917,2]
[320077822,1711139451719,-1014.84,0.00021917,2]
[320077823,1711139451729,-948.46,0.00021917,2]
[320077824,1711139451740,-353.56656862,0.00021917,2]
[320077825,1711139451755,-500.0,0.00021917,2]
[320077826,1711139451773,-500.0,0.00021917,2]
[320077827,1711139451783,-792.38,0.00021917,2]
[320077828,1711139451793,-2671.56,0.00021917,2]
[320077829,1711139451803,-500.0,0.00021917,2]
[320077830,1711139451813,-2029.6,0.00021917,2]
[320077831,1711139451823,-500.0,0.00021917,2]
[320077832,1711139451835,-500.0,0.00021917,2]
[320077833,1711139451846,-500.0,0.00021917,2]
[320077834,1711139451855,-1254.91,0.00021917,2]
[320077835,1711139451866,-500.0,0.00021917,2]
[320077836,1711139451876,-500.0,0.00021917,2]
[320077837,1711139451885,-500.0,0.00021917,2]
[320077838,1711139451895,-1616.39,0.00021917,2]
[320077839,1711139451905,-500.0,0.00021917,2]
[320077840,1711139451915,-566.27,0.00021917,2]
[320077841,1711139451925,-1195.1,0.00021917,2]
[320077842,1711139451934,-561.44,0.00021917,2]
[320077843,1711139451944,-500.0,0.00021917,2]
[320077844,1711139451954,-500.0,0.00021917,2]
[320077845,1711139451964,-1596.94,0.00021917,2]